fUST/lending_fUST_20250817
["ID","MTS","AMOUNT","RATE_DAILY","PERIOD"]
[379710639,1755379840409,-9317.89,0.00020156,2]
[379710640,1755379840419,-529.61,0.00020156,2]
[379710641,1755379840428,-647.08,0.00020156,2]
[379710642,1755379840438,-402.20260088,0.00020156,2]
[379710643,1755379840449,-480.0,0.00020156,2]
[379710644,1755379840459,-480.0,0.00020156,2]
[379710645,1755379840468,-384.1449626,0.00020156,2]
[379710646,1755379840478,-480.0,0.00020156,2]
[379710647,1755379840487,-480.0,0.00020156,2]
[379710648,1755379840496,-1702.53,0.00020156,2]
[379710649,1755379840506,-480.0,0.00020156,2]
[379710650,1755379840515,-480.0,0.00020156,2]
[379710651,1755379840524,-480.0,0.00020156,2]
[379710652,1755379840534,-480.0,0.00020156,2]
[379710653,1755379840543,-480.0,0.00020156,2]
[379710654,1755379840552,-480.0,0.00020156,2]
[379710655,1755379840561,-480.0,0.00020156,2]
[379710656,1755379840571,-7157.78,0.00020156,2]
[379710657,1755379840580,-480.0,0.00020156,2]
[379710658,1755379840589,-440.0,0.00020157,2]
[379710659,1755379840599,-480.0,0.00020157,2]
[379710660,1755379840609,-480.0,0.00020157,2]
[379710661,1755379840618,-1244.3,0.00020157,2]
[379710662,1755379840627,-1203.11,0.00020157,2]
[379710663,1755379840637,-3298.84,0.00020157,2]
[379710664,1755379840647,-480.0,0.00020157,2]
[379710665,1755379840656,-894.47,0.00020157,2]
[379710666,1755379840666,-480.0,0.00020157,2]
[379710667,1755379840675,-480.0,0.00020157,2]
[379710668,1755379840684,-3056.17,0.00020157,2]
[379710669,1755379840693,-684.69,0.00020158,2]
[379710670,1755379840702,-480.0,0.00020158,2]
[379710671,1755379840712,-480.0,0.00020158,2]
[379710672,1755379840721,-480.0,0.00020158,2]
[379710673,1755379840731,-480.0,0.00020158,2]
[379710674,1755379840740,-500.0,0.00020158,2]
[379710675,1755379840750,-370000.0,0.0002016,2]
[379710676,1755379840759,-386.895773,0.00020187,2]
[379710677,1755379840768,-1626.21340956,0.00020193,2]
[379710678,1755379840778,-151.0,0.000202,4]
[379710679,1755379840787,-153.35097463,0.000202,2]
[379710680,1755379840796,-1000.0,0.0002026,2]
[379710681,1755379840805,-12681.6255076,0.0002026,3]
[379710682,1755379840815,-462.1417622,0.0002026,3]
[379710683,1755379840824,-160.0,0.0002026,3]
[379710684,1755379840833,-417.15472785,0.0002026,3]
[379710685,1755379840842,-511.0,0.00020286,2]
[379710687,1755379840851,-151.0,0.000203,4]
[379710689,1755379840861,-286.0,0.000203,2]
[379710691,1755379840870,-511.0,0.00020304,2]
[379710693,1755379840879,-1626.21340956,0.0002033,2]
[379710695,1755379840888,-511.0,0.0002037,2]
[379710697,1755379840897,-151.0,0.000204,3]
[379710699,1755379840907,-480.0,0.0002042,2]
[379710701,1755379840917,-480.0,0.0002042,2]
[379710703,1755379840926,-480.0,0.0002042,2]
[379710705,1755379840935,-483.07,0.0002042,2]
[379710707,1755379840944,-480.0,0.0002042,2]
[379710709,1755379840953,-582.42,0.00020421,2]
[379710711,1755379840962,-601.21,0.00020421,2]
[379710713,1755379840971,-480.0,0.00020421,2]
[379710715,1755379840980,-1864.63,0.00020421,2]
[379710717,1755379840990,-2625.15,0.00020421,2]
[379710719,1755379840999,-480.0,0.00020421,2]
[379710721,1755379841009,-1442.84,0.00020421,2]
[379710723,1755379841018,-642.18,0.00020421,2]
[379710725,1755379841027,-621.54,0.00020421,2]
[379710727,1755379841037,-814.61,0.00020421,2]
[379710729,1755379841046,-480.0,0.00020421,2]
[379710731,1755379841055,-2528.79,0.00020421,2]
[379710733,1755379841064,-894.0,0.00020421,2]
[379710735,1755379841074,-480.0,0.00020421,2]
[379710737,1755379841083,-1138.14,0.00020421,2]
[379710739,1755379841091,-374.19214148,0.00020421,2]
[379710741,1755379841101,-480.0,0.00020421,2]
[379710743,1755379841111,-835.63,0.00020421,2]
[379710745,1755379841120,-867.6,0.00020421,2]
[379710747,1755379841130,-480.0,0.00020427,2]
[379710749,1755379841139,-507.9,0.00020427,2]
[379710751,1755379841149,-480.0,0.00020427,2]
[379710753,1755379841158,-280.67801479,0.00020427,2]
[379710755,1755379841167,-1036.7,0.00020427,2]
[379710757,1755379841176,-1754.21,0.00020427,2]
[379710759,1755379841185,-921.7,0.00020427,2]
[379710761,1755379841194,-480.0,0.00020427,2]
[379710763,1755379841204,-480.0,0.00020427,2]
[379710765,1755379841213,-480.0,0.00020427,2]
[379710767,1755379841222,-4718.81,0.00020427,2]
[379710769,1755379841231,-604.72,0.00020427,2]
[379710771,1755379841240,-480.0,0.00020427,2]
[379710773,1755379841249,-617.33,0.00020427,2]
[379710775,1755379841258,-751.46,0.00020427,2]
[379710777,1755379841267,-480.0,0.00020427,2]
[379710779,1755379841277,-3479.47,0.00020427,2]
[379710781,1755379841286,-711.42,0.00020427,2]
[379710783,1755379841296,-565.96,0.00020427,2]
[379710785,1755379841305,-480.0,0.00020427,2]
[379710787,1755379841314,-909.28,0.00020427,2]
[379710789,1755379841323,-480.0,0.00020427,2]
[379710790,1755379841332,-976.48,0.00020427,2]
[379710793,1755379841342,-678.67,0.00020427,2]
[379710794,1755379841352,-480.0,0.00020427,2]
[379710797,1755379841361,-677.55,0.00020427,2]
[379710798,1755379841370,-480.0,0.00020427,2]
[379710800,1755379841379,-480.0,0.00020427,2]
[379710802,1755379841389,-494.57724829,0.00020427,2]
[379710804,1755379841398,-480.0,0.00020427,2]
[379710806,1755379841409,-480.0,0.00020427,2]
[379710808,1755379841419,-745.81,0.00020427,2]
[379710810,1755379841428,-480.0,0.00020427,2]
[379710812,1755379841437,-480.0,0.00020427,2]
[379710814,1755379841446,-480.0,0.00020427,2]
[379710816,1755379841456,-935.54,0.00020427,2]
[379710818,1755379841466,-480.0,0.00020427,2]
[379710820,1755379841475,-690.41,0.00020427,2]
[379710822,1755379841485,-480.0,0.00020427,2]
[379710824,1755379841495,-480.0,0.00020427,2]
[379710826,1755379841505,-989.41,0.00020427,2]
[379710828,1755379841515,-480.0,0.00020427,2]
[379710830,1755379841524,-897.65,0.00020427,2]
[379710833,1755379841534,-480.0,0.00020428,2]
[379710835,1755379841543,-480.0,0.00020428,2]
[379710836,1755379841553,-480.0,0.00020428,2]
[379710838,1755379841562,-480.0,0.00020428,2]
[379710840,1755379841571,-480.0,0.00020428,2]
[379710842,1755379841580,-480.0,0.00020428,2]
[379710844,1755379841589,-480.0,0.00020428,2]
[379710846,1755379841599,-507.27,0.00020428,2]
[379710848,1755379841608,-3144.92,0.00020428,2]
[379710850,1755379841618,-480.0,0.00020428,2]
[379710852,1755379841627,-677.51,0.00020428,2]
[379710854,1755379841637,-480.0,0.00020428,2]
[379710856,1755379841647,-927.7,0.00020428,2]
[379710858,1755379841658,-480.0,0.00020428,2]
[379710860,1755379841668,-480.0,0.00020428,2]
[379710862,1755379841678,-480.0,0.00020428,2]
[379710864,1755379841687,-480.0,0.00020428,2]
[379710867,1755379841699,-636.63,0.00020428,2]
[379710868,1755379841708,-524.55,0.00020428,2]
[379710871,1755379841719,-1008.29,0.00020428,2]
[379710873,1755379841729,-480.0,0.00020428,2]
[379710874,1755379841740,-480.0,0.00020428,2]
[379710877,1755379841749,-762.99,0.00020428,2]
[379710878,1755379841760,-480.0,0.00020428,2]
[379710880,1755379841770,-480.0,0.00020428,2]
[379710882,1755379841780,-480.0,0.00020428,2]
[379710884,1755379841789,-9465.91,0.00020428,2]
[379710886,1755379841800,-480.0,0.00020428,2]
[379710889,1755379841811,-1079.52,0.00020428,2]
[379710890,1755379841821,-480.0,0.00020428,2]
[379710892,1755379841830,-480.0,0.00020428,2]
[379710894,1755379841839,-480.0,0.00020428,2]
[379710896,1755379841849,-480.0,0.00020428,2]
[379710898,1755379841860,-1898.78,0.00020428,2]
[379710900,1755379841869,-480.0,0.00020428,2]
[379710902,1755379841880,-480.0,0.00020428,2]
[379710905,1755379841906,-673.64,0.00020428,2]
[379710908,1755379841938,-548.42,0.00020429,2]
[379710911,1755379841951,-1246.79,0.00020429,2]
[379710913,1755379841963,-480.0,0.00020429,2]
[379710915,1755379841974,-488.53,0.00020429,2]
[379710917,1755379841983,-1328.44,0.00020429,2]
[379710919,1755379841992,-491.16,0.00020429,2]
[379710921,1755379842003,-480.0,0.00020429,2]
[379710923,1755379842016,-480.0,0.00020429,2]
[379710925,1755379842026,-480.0,0.00020429,2]
[379710927,1755379842036,-634.46,0.00020429,2]
[379710929,1755379842046,-869.14,0.00020429,2]
[379710931,1755379842056,-480.0,0.00020429,2]
[379710933,1755379842066,-599.36,0.00020429,2]
[379710935,1755379842075,-480.0,0.00020429,2]
[379710937,1755379842084,-1410.74,0.00020429,2]
[379710939,1755379842094,-589.82,0.00020429,2]
[379710941,1755379842103,-480.0,0.00020429,2]
[379710943,1755379842113,-833.04,0.00020429,2]
[379710945,1755379842124,-1025.15,0.00020429,2]
[379710947,1755379842133,-480.0,0.00020429,2]
[379710949,1755379842143,-611.46,0.00020429,2]
[379710951,1755379842152,-480.0,0.00020429,2]
[379710953,1755379842162,-813.54,0.00020429,2]
[379710955,1755379842172,-480.0,0.00020429,2]
[379710957,1755379842181,-480.0,0.00020429,2]
[379710960,1755379842191,-717.35,0.00020429,2]
[379710962,1755379842200,-480.0,0.0002043,2]
[379710978,1755379842337,-480.0,0.0002043,2]
[379710980,1755379842347,-480.0,0.0002043,2]
[379710982,1755379842356,-480.0,0.0002043,2]
[379710984,1755379842366,-480.0,0.0002043,2]
[379710986,1755379842375,-527.55273355,0.0002043,2]
[379710988,1755379842384,-480.0,0.0002043,2]
[379710990,1755379842394,-531.63,0.0002043,2]
[379710992,1755379842403,-480.0,0.0002043,2]
[379710994,1755379842413,-480.0,0.0002043,2]
[379710996,1755379842422,-480.0,0.0002043,2]
[379710998,1755379842432,-480.0,0.0002043,2]
[379711000,1755379842441,-765.6,0.0002043,2]
[379711002,1755379842450,-480.0,0.0002043,2]
[379711004,1755379842460,-480.0,0.0002043,2]
[379711006,1755379842469,-480.0,0.0002043,2]
[379711008,1755379842478,-480.0,0.0002043,2]
[379711010,1755379842487,-480.0,0.0002043,2]
[379711012,1755379842497,-480.0,0.0002043,2]
[379711014,1755379842506,-535.98,0.0002043,2]
[379711016,1755379842515,-480.0,0.0002043,2]
[379711018,1755379842524,-480.0,0.0002043,2]
[379711020,1755379842533,-480.0,0.0002043,2]
[379711022,1755379842542,-705.19,0.0002043,2]
[379711024,1755379842552,-480.0,0.0002043,2]
[379711026,1755379842561,-480.0,0.0002043,2]
[379711028,1755379842570,-480.0,0.0002043,2]
[379711030,1755379842579,-480.0,0.0002043,2]
[379711032,1755379842589,-480.0,0.0002043,2]
[379711034,1755379842599,-480.0,0.0002043,2]
[379711036,1755379842607,-510.8,0.0002043,2]
[379711038,1755379842617,-480.0,0.0002043,2]
[379711040,1755379842626,-480.0,0.0002043,2]
[379711042,1755379842635,-480.0,0.0002043,2]
[379711044,1755379842644,-1407.97,0.0002043,2]
[379711046,1755379842653,-480.0,0.0002043,2]
[379711048,1755379842662,-549.88,0.0002043,2]
[379711050,1755379842671,-602.64,0.0002043,2]
[379711052,1755379842681,-480.0,0.0002043,2]
[379711054,1755379842690,-159.23244392,0.0002043,2]
[379711056,1755379842699,-480.0,0.0002043,2]
[379711058,1755379842708,-190.59743655,0.0002043,2]
[379711060,1755379842717,-480.0,0.0002043,2]
[379711062,1755379842726,-480.0,0.0002043,2]
[379711064,1755379842735,-480.0,0.0002043,2]
[379711066,1755379842744,-480.0,0.0002043,2]
[379711068,1755379842754,-480.0,0.0002043,2]
[379711070,1755379842763,-480.0,0.0002043,2]
[379711072,1755379842772,-9317.89,0.0002043,2]
[379711074,1755379842782,-529.61,0.0002043,2]
[379711076,1755379842791,-647.08,0.0002043,2]
[379711078,1755379842800,-480.0,0.0002043,2]
[379711080,1755379842810,-1702.53,0.0002043,2]
[379711082,1755379842820,-267.48278515,0.0002043,2]
[379711084,1755379842830,-480.0,0.0002043,2]
[379711086,1755379842839,-480.0,0.0002043,2]
[379711088,1755379842849,-480.0,0.0002043,2]
[379711090,1755379842859,-346.87750768,0.0002043,2]
[379711092,1755379842868,-480.0,0.0002043,2]
[379711095,1755379842878,-7157.78,0.0002043,2]
[379711097,1755379842887,-480.0,0.0002043,2]
[379711099,1755379842895,-480.0,0.00020431,2]
[379711101,1755379842905,-1244.3,0.00020431,2]
[379711103,1755379842915,-1203.11,0.00020431,2]
[379711105,1755379842924,-3298.84,0.00020431,2]
[379711107,1755379842933,-480.0,0.00020431,2]
[379711109,1755379842943,-894.47,0.00020431,2]
[379711111,1755379842953,-480.0,0.00020431,2]
[379711113,1755379842963,-3056.17,0.00020431,2]
[379711115,1755379842972,-151.0,0.00020432,2]
[379711117,1755379842982,-520.946992,0.00020432,2]
[379711119,1755379842991,-520.946992,0.00020432,2]
[379711121,1755379843000,-151.0,0.00020432,2]
[379711123,1755379843017,-151.0,0.00020432,2]
[379711125,1755379843027,-684.69,0.00020432,2]
[379711127,1755379843036,-480.0,0.00020432,2]
[379711129,1755379843046,-151.0,0.00020432,2]
[379711131,1755379843056,-151.0,0.00020432,2]
[379711133,1755379843066,-480.0,0.00020432,2]
[379711135,1755379843075,-480.0,0.00020432,2]
[379711137,1755379843084,-219.040316,0.00020433,2]
[379711139,1755379843094,-417.15472785,0.00020444,2]
[379711141,1755379843104,-462.1417622,0.00020444,2]
[379711143,1755379843113,-215.68093138,0.00020444,2]
[379711145,1755379843123,-160.0,0.00020444,2]
[379711147,1755379843133,-232.11368524,0.00020444,2]
[379711149,1755379843142,-12681.6255076,0.00020444,2]
[379711151,1755379843152,-160.0,0.00020444,2]
[379711153,1755379843162,-528.38334358,0.00020444,2]
[379711155,1755379843172,-843.58077381,0.00020444,2]
[379711157,1755379843182,-160.0,0.00020447,2]
[379711159,1755379843194,-160.0,0.00020447,2]
[379711161,1755379843203,-160.0,0.00020447,2]
[379711163,1755379843213,-160.0,0.00020447,2]
[379711165,1755379843222,-1626.21340956,0.00020466,2]
[379711167,1755379843232,-151.0,0.000205,3]
[379711169,1755379843241,-200.0,0.00020557,20]
[379711171,1755379843250,-200.0,0.00020557,20]
[379711173,1755379843259,-200.0,0.00020557,20]
[379711175,1755379843268,-200.0,0.00020557,20]
[379711177,1755379843278,-200.0,0.00020557,20]
[379711179,1755379843288,-200.0,0.00020557,20]
[379711181,1755379843297,-200.0,0.00020557,20]
[379711183,1755379843306,-200.0,0.00020557,20]
[379711185,1755379843316,-200.0,0.00020557,20]
[379711188,1755379843325,-200.0,0.00020557,20]
[379711189,1755379843335,-600.0,0.00020557,20]
[379711192,1755379843344,-47144.79709159,0.00020579,2]
[379711194,1755379843353,-151.0,0.000206,4]
[379711196,1755379843363,-1626.21340956,0.00020603,2]
[379711198,1755379843372,-235.23707463,0.00020614,2]
[379711200,1755379843381,-511.0,0.00020626,2]
[379711202,1755379843390,-480.0,0.00020694,2]
[379711203,1755379843400,-480.0,0.00020694,2]
[379711205,1755379843409,-483.07,0.00020694,2]
[379711208,1755379843419,-480.0,0.00020694,2]
[379711210,1755379843428,-582.42,0.00020695,2]
[379711212,1755379843438,-601.21,0.00020695,2]
[379711214,1755379843447,-475.19275947,0.00020695,2]
[379711216,1755379843457,-1864.63,0.00020695,2]
[379711217,1755379843466,-2625.15,0.00020695,2]
[379711219,1755379843475,-480.0,0.00020695,2]
[379711222,1755379843484,-1442.84,0.00020695,2]
[379711223,1755379843494,-642.18,0.00020695,2]
[379711225,1755379843503,-621.54,0.00020695,2]
[379711228,1755379843514,-814.61,0.00020695,2]
[379711230,1755379843523,-480.0,0.00020695,2]
[379711232,1755379843532,-2528.79,0.00020695,2]
[379711234,1755379843542,-894.0,0.00020695,2]
[379711236,1755379843551,-480.0,0.00020695,2]
[379711238,1755379843561,-1138.14,0.00020695,2]
[379711240,1755379843571,-480.0,0.00020695,2]
[379711242,1755379843580,-835.63,0.00020695,2]
[379711243,1755379843590,-151.0,0.000207,3]
[379711244,1755379843599,-480.0,0.00020701,2]
[379711245,1755379843608,-507.9,0.00020701,2]
[379711246,1755379843617,-480.0,0.00020701,2]
[379711247,1755379843626,-1036.7,0.00020701,2]
[379711248,1755379843635,-1754.21,0.00020701,2]
[379711249,1755379843645,-921.7,0.00020701,2]
[379711250,1755379843654,-480.0,0.00020701,2]
[379711251,1755379843663,-480.0,0.00020701,2]
[379711252,1755379843673,-480.0,0.00020701,2]
[379711253,1755379843681,-4718.81,0.00020701,2]
[379711254,1755379843690,-604.72,0.00020701,2]
[379711255,1755379843699,-480.0,0.00020701,2]
[379711256,1755379843708,-617.33,0.00020701,2]
[379711257,1755379843717,-751.46,0.00020701,2]
[379711258,1755379843726,-480.0,0.00020701,2]
[379711259,1755379843736,-3479.47,0.00020701,2]
[379711260,1755379843745,-711.42,0.00020701,2]
[379711261,1755379843754,-565.96,0.00020701,2]
[379711262,1755379843763,-480.0,0.00020701,2]
[379711263,1755379843772,-909.28,0.00020701,2]
[379711264,1755379843781,-480.0,0.00020701,2]
[379711265,1755379843790,-976.48,0.00020701,2]
[379711266,1755379843799,-678.67,0.00020701,2]
[379711267,1755379843807,-480.0,0.00020701,2]
[379711268,1755379843816,-677.55,0.00020701,2]
[379711269,1755379843825,-480.0,0.00020701,2]
[379711270,1755379843834,-480.0,0.00020701,2]
[379711271,1755379843843,-505.58,0.00020701,2]
[379711272,1755379843853,-480.0,0.00020701,2]
[379711273,1755379843862,-480.0,0.00020701,2]
[379711274,1755379843871,-745.81,0.00020701,2]
[379711275,1755379843881,-480.0,0.00020701,2]
[379711276,1755379843891,-480.0,0.00020701,2]
[379711277,1755379843900,-480.0,0.00020701,2]
[379711279,1755379843909,-935.54,0.00020701,2]
[379711281,1755379843918,-480.0,0.00020701,2]
[379711283,1755379843927,-690.41,0.00020701,2]
[379711285,1755379843936,-480.0,0.00020701,2]
[379711287,1755379843946,-989.41,0.00020701,2]
[379711289,1755379843955,-897.65,0.00020701,2]
[379711291,1755379843964,-480.0,0.00020702,2]
[379711293,1755379843973,-480.0,0.00020702,2]
[379711295,1755379843982,-480.0,0.00020702,2]
[379711297,1755379843991,-480.0,0.00020702,2]
[379711299,1755379844000,-480.0,0.00020702,2]
[379711301,1755379844011,-480.0,0.00020702,2]
[379711303,1755379844020,-480.0,0.00020702,2]
[379711305,1755379844029,-507.27,0.00020702,2]
[379711307,1755379844038,-3144.92,0.00020702,2]
[379711309,1755379844047,-480.0,0.00020702,2]
[379711311,1755379844056,-677.51,0.00020702,2]
[379711313,1755379844065,-480.0,0.00020702,2]
[379711315,1755379844075,-927.7,0.00020702,2]
[379711317,1755379844084,-480.0,0.00020702,2]
[379711319,1755379844093,-480.0,0.00020702,2]
[379711321,1755379844102,-480.0,0.00020702,2]
[379711323,1755379844111,-480.0,0.00020702,2]
[379711325,1755379844121,-636.63,0.00020702,2]
[379711327,1755379844130,-524.55,0.00020702,2]
[379711329,1755379844139,-1008.29,0.00020702,2]
[379711331,1755379844149,-480.0,0.00020702,2]
[379711333,1755379844158,-480.0,0.00020702,2]
[379711335,1755379844167,-762.99,0.00020702,2]
[379711337,1755379844177,-480.0,0.00020702,2]
[379711339,1755379844186,-428.77903435,0.00020702,2]
[379711341,1755379844195,-480.0,0.00020702,2]
[379711343,1755379844205,-9465.91,0.00020702,2]
[379711345,1755379844214,-480.0,0.00020702,2]
[379711347,1755379844224,-1079.52,0.00020702,2]
[379711349,1755379844234,-480.0,0.00020702,2]
[379711351,1755379844243,-480.0,0.00020702,2]
[379711353,1755379844252,-480.0,0.00020702,2]
[379711355,1755379844262,-479.64454977,0.00020702,2]
[379711357,1755379844272,-1898.78,0.00020702,2]
[379711359,1755379844281,-609.01194923,0.00020702,2]
[379711361,1755379844291,-480.0,0.00020702,2]
[379711363,1755379844300,-673.64,0.00020702,2]
[379711365,1755379844309,-548.42,0.00020703,2]
[379711367,1755379844318,-1246.79,0.00020703,2]
[379711369,1755379844327,-480.0,0.00020703,2]
[379711371,1755379844336,-488.53,0.00020703,2]
[379711373,1755379844346,-1328.44,0.00020703,2]
[379711375,1755379844356,-491.16,0.00020703,2]
[379711377,1755379844366,-480.0,0.00020703,2]
[379711379,1755379844375,-480.0,0.00020703,2]
[379711381,1755379844384,-480.0,0.00020703,2]
[379711383,1755379844396,-634.46,0.00020703,2]
[379711385,1755379844405,-869.14,0.00020703,2]
[379711387,1755379844415,-465.61715794,0.00020703,2]
[379711389,1755379844424,-599.36,0.00020703,2]
[379711391,1755379844434,-473.42667314,0.00020703,2]
[379711393,1755379844443,-1410.74,0.00020703,2]
[379711395,1755379844453,-589.82,0.00020703,2]
[379711397,1755379844462,-480.0,0.00020703,2]
[379711399,1755379844471,-833.04,0.00020703,2]
[379711401,1755379844480,-1025.15,0.00020703,2]
[379711403,1755379844491,-480.0,0.00020703,2]
[379711405,1755379844500,-611.46,0.00020703,2]
[379711407,1755379844509,-480.0,0.00020703,2]
[379711409,1755379844521,-813.54,0.00020703,2]
[379711411,1755379844531,-480.0,0.00020703,2]
[379711413,1755379844539,-480.0,0.00020703,2]
[379711415,1755379844548,-717.35,0.00020703,2]
[379711417,1755379844557,-154.840207,0.00020704,2]
[379711419,1755379844567,-520.946992,0.00020704,2]
[379711421,1755379844577,-520.946992,0.00020704,2]
[379711423,1755379844586,-480.0,0.00020704,2]
[379711425,1755379844596,-151.0,0.00020704,2]
[379711427,1755379844605,-151.0,0.00020704,2]
[379711429,1755379844615,-480.0,0.00020704,2]
[379711431,1755379844624,-480.0,0.00020704,2]
[379711433,1755379844634,-480.0,0.00020704,2]
[379711435,1755379844643,-480.0,0.00020704,2]
[379711437,1755379844653,-480.0,0.00020704,2]
[379711439,1755379844662,-531.63,0.00020704,2]
[379711441,1755379844671,-480.0,0.00020704,2]
[379711443,1755379844680,-480.0,0.00020704,2]
[379711445,1755379844689,-480.0,0.00020704,2]
[379711447,1755379844698,-480.0,0.00020704,2]
[379711449,1755379844706,-765.6,0.00020704,2]
[379711451,1755379844715,-480.0,0.00020704,2]
[379711453,1755379844724,-480.0,0.00020704,2]
[379711455,1755379844733,-480.0,0.00020704,2]
[379711457,1755379844742,-480.0,0.00020704,2]
[379711459,1755379844752,-480.0,0.00020704,2]
[379711461,1755379844761,-480.0,0.00020704,2]
[379711463,1755379844770,-535.98,0.00020704,2]
[379711465,1755379844779,-480.0,0.00020704,2]
[379711467,1755379844787,-480.0,0.00020704,2]
[379711468,1755379844798,-480.0,0.00020704,2]
[379711470,1755379844807,-705.19,0.00020704,2]
[379711472,1755379844816,-480.0,0.00020704,2]
[379711474,1755379844826,-151.0,0.00020704,2]
[379711476,1755379844835,-480.0,0.00020704,2]
[379711478,1755379844845,-480.0,0.00020704,2]
[379711480,1755379844854,-480.0,0.00020704,2]
[379711482,1755379844863,-480.0,0.00020704,2]
[379711484,1755379844871,-480.0,0.00020704,2]
[379711486,1755379844881,-510.8,0.00020704,2]
[379711488,1755379844890,-301.40638054,0.00020704,2]
[379711490,1755379844899,-151.0,0.00020704,2]
[379711492,1755379844908,-480.0,0.00020704,2]
[379711494,1755379844917,-286.661,0.00020704,2]
[379711496,1755379844926,-480.0,0.00020704,2]
[379711498,1755379844935,-1407.97,0.00020704,2]
[379711500,1755379844944,-480.0,0.00020704,2]
[379711502,1755379844953,-549.88,0.00020704,2]
[379711504,1755379844963,-602.64,0.00020704,2]
[379711506,1755379844974,-480.0,0.00020704,2]
[379711508,1755379844983,-480.0,0.00020704,2]
[379711510,1755379844992,-480.0,0.00020704,2]
[379711512,1755379845002,-480.0,0.00020704,2]
[379711514,1755379845016,-480.0,0.00020704,2]
[379711516,1755379845025,-480.0,0.00020704,2]
[379711518,1755379845034,-480.0,0.00020704,2]
[379711520,1755379845045,-480.0,0.00020704,2]
[379711522,1755379845054,-9317.89,0.00020704,2]
[379711524,1755379845063,-529.61,0.00020704,2]
[379711526,1755379845073,-647.08,0.00020704,2]
[379711528,1755379845082,-480.0,0.00020704,2]
[379711530,1755379845092,-1702.53,0.00020704,2]
[379711546,1755379845224,-480.0,0.00020704,2]
[379711548,1755379845235,-480.0,0.00020704,2]
[379711550,1755379845245,-480.0,0.00020704,2]
[379711552,1755379845255,-480.0,0.00020704,2]
[379711554,1755379845264,-7157.78,0.00020704,2]
[379711556,1755379845274,-480.0,0.00020704,2]
[379711558,1755379845284,-219.040316,0.00020705,2]
[379711560,1755379845293,-151.0,0.00020705,2]
[379711562,1755379845302,-151.0,0.00020705,2]
[379711564,1755379845311,-480.0,0.00020705,2]
[379711566,1755379845320,-1244.3,0.00020705,2]
[379711568,1755379845329,-1203.11,0.00020705,2]
[379711570,1755379845338,-3298.84,0.00020705,2]
[379711572,1755379845348,-480.0,0.00020705,2]
[379711574,1755379845357,-894.47,0.00020705,2]
[379711576,1755379845366,-480.0,0.00020705,2]
[379711578,1755379845375,-3056.17,0.00020705,2]
[379711580,1755379845384,-219.040316,0.00020706,2]
[379711582,1755379845394,-520.946992,0.00020706,2]
[379711584,1755379845403,-520.946992,0.00020706,2]
[379711586,1755379845413,-151.0,0.00020706,2]
[379711588,1755379845423,-171.918254,0.00020706,2]